bitfinex/quotes_ETHUSD_20250324
["timestamp","ask_amount","ask_price","bid_price","bid_amount"]
[1742801387240,4.81731,2075.9,2075.7,0.09722584]
[1742801387446,4.81741,2075.8,2075.5,5.63371]
[1742801387623,4.81741,2075.8,2075.6,0.09722584]
[1742801388309,0.8067,2076.1,2075.6,4.91506584]
[1742801388512,0.8067,2076.1,2075.7,4.81753]
[1742801388951,0.8067,2076.1,2075.8,4.9123238]
[1742801389630,5.62344,2076.1,2075.8,0.0949338]
[1742801389830,4.81696,2076.0,2075.6,5.39074358]
[1742801390031,4.81734,2075.9,2075.5,0.8156]
[1742801390224,4.81734,2075.9,2075.5,5.63363]
[1742801390424,4.81734,2075.9,2075.6,0.0949338]
[1742801392951,4.81699,2076.0,2075.6,0.0949338]
[1742801393251,5.62347,2076.1,2075.7,4.81762]
[1742801393451,10.27947,2076.1,2075.7,4.81762]
[1742801393752,10.27947,2076.1,2075.8,0.0949338]
[1742801394244,10.27947,2076.1,2075.9,0.0949338]
[1742801394446,4.81695,2076.0,2075.9,0.0949338]
[1742801394947,4.81695,2076.0,2075.6,4.81781]
[1742801395352,4.81695,2076.0,2075.7,0.0949338]
[1742801395949,4.86532298,2076.0,2075.7,0.0949338]
[1742801396315,4.81721,2075.9,2075.7,0.0949338]
[1742801396952,4.81721,2075.9,2075.5,5.6337]
[1742801397139,4.81721,2075.9,2075.8,0.09460752]
[1742801397340,4.81721,2075.9,2075.5,5.6337]
[1742801397535,4.81721,2075.9,2075.8,0.09460752]
[1742801397764,4.81743,2075.8,2075.5,4.8181]
[1742801397962,4.81743,2075.8,2075.3,5.59557]
[1742801398268,4.81799,2075.6,2075.1,6.17455079]
[1742801398423,4.81819,2075.5,2075.1,6.17455079]
[1742801398754,4.81799,2075.6,2075.2,4.81878]
[1742801399358,4.81799,2075.6,2075.2,9.63747]
[1742801400174,4.81799,2075.6,2075.2,4.81869]
[1742801400721,0.8311,2076.2,2075.5,0.7772]
[1742801400921,5.64675,2076.6,2076.1,4.81655]
[1742801401125,3.0,2076.5,2076.1,4.81655]
[1742801401377,7.81583,2076.5,2076.0,4.8169]
[1742801401671,0.8311,2076.6,2076.2,4.81645]
[1742801401974,4.655,2076.7,2076.4,4.8159]
[1742801402678,0.83540378,2076.8,2076.3,5.59335]
[1742801402862,0.83540378,2076.8,2076.4,4.81593]
[1742801403173,0.00430378,2076.8,2076.4,4.81593]
[1742801403373,0.00430378,2076.8,2076.5,4.81577]
[1742801403533,0.00430378,2076.8,2076.5,9.63142]
[1742801403733,0.00430378,2076.8,2076.5,5.74846509]
[1742801404148,0.00430378,2076.8,2076.6,4.81554]
[1742801404364,0.00430378,2076.8,2076.7,4.81533]
[1742801405276,0.00430378,2076.8,2076.7,5.59253]
[1742801405612,0.00430378,2076.8,2076.7,5.55833457]
[1742801405729,0.00430378,2076.8,2076.7,8.07418035]
[1742801406244,0.00430378,2076.8,2076.7,7.72058154]
[1742801406645,3.78e-06,2076.8,2076.7,10.72058154]
[1742801408548,3.78e-06,2076.8,2076.7,11.07768993]
[1742801412262,0.935326,2077.9,2077.8,4.81278]
[1742801412654,0.122526,2077.9,2077.8,4.81278]
[1742801416461,0.122526,2077.9,2077.6,4.81324]
[1742801416868,0.6973086,2077.9,2077.6,4.81314]
[1742801417067,0.8128,2077.8,2077.5,4.81342]
[1742801417261,0.8128,2077.8,2077.6,4.81308]
[1742801417584,0.122526,2077.9,2077.7,4.81282]
[1742801417779,0.122526,2077.9,2077.8,4.81278]
[1742801421698,0.122526,2077.9,2077.8,6.12398]
[1742801422563,0.122526,2077.9,2077.8,6.17209689]
[1742801423286,0.122526,2077.9,2077.8,10.77398]
[1742801423986,0.122526,2077.9,2077.8,6.12398]
[1742801424183,0.122526,2077.9,2077.8,12.4047232]
[1742801424384,0.122526,2077.9,2077.8,15.4047232]
[1742801425282,6e-06,2077.9,2077.8,15.4047232]
[1742801426905,0.005,2078.4,2078.3,5.56712]
[1742801427072,0.005,2078.4,2078.3,13.81522097]
[1742801427278,0.005,2078.4,2078.3,16.1110281]
[1742801428298,1e-05,2078.4,2078.3,16.1110281]
[1742801429173,1e-05,2078.4,2078.3,11.4610281]
[1742801429374,1e-05,2078.4,2078.3,7.9110281]
[1742801429584,1e-05,2078.4,2078.3,4.81162]
[1742801429772,1e-05,2078.4,2078.3,5.36162]
[1742801430096,0.005,2078.5,2078.4,4.98138]
[1742801431399,0.005,2078.5,2078.4,5.53138]
[1742801432095,0.005,2078.5,2078.4,6.56568]
[1742801432468,0.005,2078.5,2078.4,6.39569]
[1742801432885,0.005,2078.5,2078.4,5.36139]
[1742801435523,0.7817,2078.4,2078.0,4.81211]
[1742801435716,0.7817,2078.4,2078.1,4.812]
[1742801435928,4.81626,2078.5,2077.8,6.2787432]
[1742801435929,4.81172,2078.3,2077.9,4.81244]
[1742801436130,4.81172,2078.3,2077.8,4.81274]
[1742801436131,0.7817,2078.2,2077.8,4.81274]
[1742801436305,5.59359,2078.2,2077.8,4.81274]
[1742801436638,0.7817,2078.2,2077.9,4.81242]
[1742801437131,0.7817,2078.2,2078.0,4.81229]
[1742801437502,0.7817,2078.2,2078.1,4.81208]
[1742801437729,0.7817,2078.2,2078.0,4.81229]
[1742801439925,0.7817,2078.2,2078.0,4.81221]
[1742801440247,0.7817,2078.2,2077.9,5.3625]
[1742801440611,0.7817,2078.2,2077.9,0.55]
[1742801441114,0.7817,2078.2,2077.9,5.36251]
[1742801441440,0.7817,2078.2,2077.9,0.55]
[1742801441744,0.7817,2078.2,2077.9,5.36244]
[1742801444115,0.7817,2078.2,2077.7,0.557402]
[1742801444321,0.8094,2077.8,2077.5,4.81335]
[1742801445146,0.8094,2078.1,2077.9,4.81243]
[1742801445347,0.8094,2078.1,2078.0,4.81231]
[1742801445649,10.26903,2078.3,2077.9,4.81243]
[1742801447161,5.4574,2078.3,2078.0,4.81221]
[1742801447333,3.005,2078.5,2078.1,5.36199]
[1742801447334,0.8144,2078.5,2078.1,5.36199]
[1742801447544,0.8144,2078.5,2078.1,5.41010645]
[1742801447728,0.8144,2078.5,2078.2,4.81173]
[1742801448129,0.8144,2078.5,2078.1,5.36203]
[1742801448341,0.8144,2078.5,2078.2,4.81172]
[1742801448342,0.005,2078.5,2078.2,4.81172]
[1742801448757,0.005,2078.5,2078.2,4.79828468]
[1742801449961,0.005,2078.5,2078.2,9.61004468]
[1742801450142,0.005,2078.5,2078.4,5.36139]
[1742801450771,0.005,2078.5,2078.4,5.40949904]
[1742801451056,0.005,2078.5,2078.4,5.36139]
[1742801451663,0.54185578,2078.7,2078.5,0.145]
[1742801453371,0.54185578,2078.7,2078.5,4.9561]
[1742801453659,0.54185578,2078.7,2078.4,5.36138]
[1742801453873,0.54185578,2078.7,2078.4,0.55]
[1742801454072,4.81154,2078.4,2077.9,5.449]
[1742801454372,0.7719,2078.2,2077.8,4.81273]
[1742801454533,5.58376,2078.2,2077.8,4.81273]
[1742801454740,4.81186,2078.2,2077.8,4.81273]
[1742801454969,0.7719,2078.1,2077.8,4.81267]
[1742801455136,0.7719,2078.1,2077.8,5.855315]
[1742801455636,0.7719,2078.1,2077.9,0.55]
[1742801456137,5.58455,2077.9,2077.4,4.81356]
[1742801456343,4.8134,2077.6,2077.1,4.81439]
[1742801456549,4.8134,2077.6,2077.2,4.81413]
[1742801456767,4.81323,2077.7,2077.2,4.81413]
[1742801456981,4.81357,2077.5,2077.0,4.81461]
[1742801457133,5.58516,2077.6,2077.1,4.81429]
[1742801457469,4.81381,2077.4,2077.0,0.481461]
[1742801457768,9.62726,2077.5,2077.0,5.296071]
[1742801458163,4.81358,2077.5,2077.0,5.296071]
[1742801458371,4.81358,2077.5,2077.1,0.55]
[1742801458844,0.7719,2077.6,2077.1,5.36422]
[1742801459169,5.58525,2077.6,2077.1,6.4302491]
[1742801459366,0.7719,2077.6,2077.2,4.81398]
[1742801459572,8.58476,2077.8,2077.3,4.8138]
[1742801459884,3.7719,2077.8,2077.4,5.36356]
[1742801460091,3.7719,2077.8,2077.4,0.55]
[1742801460395,0.7719,2077.8,2077.4,6.461423]
[1742801460569,4.648,2077.9,2077.6,4.81315]
[1742801461009,31.253,2078.3,2077.6,5.3631]
[1742801461179,36.83662,2078.3,2077.8,4.81265]
[1742801461382,36.83662,2078.3,2077.8,9.62532]
[1742801461682,32.0249,2078.3,2077.9,9.62481]
[1742801461872,5.4219,2078.3,2077.9,4.81239]
[1742801462110,10.23354,2078.3,2077.9,4.81239]
[1742801462402,10.23354,2078.3,2077.9,0.55]
[1742801462403,4.81187,2078.2,2077.9,0.55]
[1742801462625,10.23354,2078.3,2077.9,0.55]
[1742801462967,5.4219,2078.3,2078.0,4.81231]
[1742801463630,0.7719,2078.6,2078.1,0.55]
[1742801463911,0.7719,2078.6,2078.3,0.55]
[1742801464112,0.54185578,2078.7,2078.3,0.55]
[1742801464316,4.81093,2078.6,2078.1,4.81203]
[1742801464527,4.81093,2078.6,2078.2,0.55]
[1742801464672,4.81093,2078.6,2078.2,5.36183]
[1742801464868,0.54185578,2078.7,2078.2,0.55]
[1742801465077,0.54185578,2078.7,2078.4,4.81133]
[1742801465374,0.54185578,2078.7,2078.2,0.55]
[1742801465375,0.54185578,2078.7,2078.3,4.81151]
[1742801466083,0.54185578,2078.7,2078.3,9.62303]
[1742801466805,0.54185578,2078.7,2078.6,0.15]
[1742801468312,5.35254578,2078.7,2078.6,0.15]
[1742801468479,0.54185578,2078.7,2078.6,0.15]
[1742801468879,0.54185578,2078.7,2078.3,4.81145]
[1742801469084,0.54185578,2078.7,2078.3,6.294182]
[1742801471604,5.35255578,2078.7,2078.3,6.294182]
[1742801472010,0.54185578,2078.7,2078.3,6.294182]
[1742801472507,0.54185578,2078.7,2078.3,11.105692]
[1742801473206,5.35255578,2078.7,2078.3,6.294182]
[1742801473501,5.35255578,2078.7,2078.3,11.105702]
[1742801473805,0.54185578,2078.7,2078.3,6.294182]
[1742801474003,0.54185578,2078.7,2078.3,11.105642]
[1742801474196,0.54185578,2078.7,2078.3,6.294182]
[1742801474392,5.35255578,2078.7,2078.3,6.294182]
[1742801474601,5.35255578,2078.7,2078.3,11.105712]
[1742801474799,0.54185578,2078.7,2078.3,6.294182]
[1742801474998,0.54185578,2078.7,2078.4,4.81135]
[1742801475206,0.54185578,2078.7,2078.3,6.294182]
[1742801475377,0.54185578,2078.7,2078.3,11.105692]
[1742801475709,5.35255578,2078.7,2078.3,6.294182]
[1742801476309,4.81093,2078.6,2078.2,5.36182]
[1742801476510,0.757,2078.6,2078.0,5.61322]
[1742801476809,5.56811,2078.6,2078.2,4.81175]
[1742801477607,5.56811,2078.6,2078.1,10.17395]
[1742801477608,10.37923,2078.6,2078.1,10.17395]
[1742801477914,10.3792,2078.6,2078.1,10.17395]
[1742801478079,4.81116,2078.5,2078.1,5.36197]
[1742801478492,10.3792,2078.6,2078.1,10.17396]
[1742801479510,10.3792,2078.6,2078.1,5.36197]
[1742801479716,4.81158,2078.4,2077.9,4.81249]
[1742801479918,4.81171,2078.3,2077.9,4.81249]
[1742801480422,4.8017274,2078.3,2078.0,0.55]
[1742801480916,0.757,2078.2,2077.8,4.81277]
[1742801481122,4.81232,2078.0,2077.6,12.62628]
[1742801481305,0.757,2078.8,2078.0,0.7785]
[1742801481617,4.81101,2078.6,2078.2,4.81179]
[1742801481791,0.54185578,2078.7,2078.4,4.81137]
[1742801482414,0.54185578,2078.7,2078.4,4.81123]
[1742801485691,0.54185578,2078.7,2078.5,4.81115]
[1742801486114,0.54185578,2078.7,2078.4,4.81135]
[1742801486921,0.54185578,2078.7,2078.4,4.81129]
[1742801489119,0.54185578,2078.7,2078.5,0.59810985]
[1742801489319,0.54185578,2078.7,2078.6,5.36093]
[1742801489492,0.54185578,2078.7,2078.6,13.83883]
[1742801489688,5.78e-06,2078.7,2078.6,13.83883]
[1742801489894,1e-05,2079.1,2079.0,9.1909]
[1742801490104,1e-05,2079.1,2079.0,15.719051]
[1742801490322,1e-05,2079.1,2079.0,11.072051]
[1742801490529,1e-05,2079.1,2079.0,15.719051]
[1742801490843,1e-05,2079.1,2079.0,16.07743991]
[1742801491188,0.02830155,2079.4,2079.3,7.80931]
[1742801491392,1.77e-06,2079.5,2079.4,8.35907]
[1742801491590,4.80234,2082.4,2081.7,4.80369]
[1742801491908,4.80218,2082.4,2081.9,5.3533]
[1742801492088,4.8027,2082.2,2081.0,0.8309]
[1742801492290,0.67555109,2082.5,2081.7,4.80376]
[1742801492502,4.80279,2082.2,2081.5,0.35950985]
[1742801492798,0.7933,2082.1,2081.6,0.55]
[1742801493000,0.7933,2082.4,2081.6,0.55]
[1742801493210,0.26179692,2082.3,2081.6,0.55]
[1742801493510,1.82466924,2082.5,2082.4,4.80215]
[1742801493698,1.82466924,2082.5,2082.3,0.55]
[1742801493898,1.82466924,2082.5,2082.4,5.35215]
[1742801494222,0.1737785,2082.7,2082.4,9.18305]
[1742801494400,0.1737785,2082.7,2082.6,5.35169]
[1742801494605,0.1737785,2082.7,2082.1,5.036]
[1742801494798,4.80178,2082.6,2082.1,0.55]
[1742801494999,4.80251,2082.3,2081.9,0.55]
[1742801495230,9.84469,2082.6,2081.4,0.8309]
[1742801495231,3.0,2082.5,2081.4,0.8309]
[1742801495531,4.80386,2081.7,2081.1,4.80504]
[1742801495826,4.80432,2081.5,2081.0,0.8309]
[1742801496024,4.80487,2081.3,2080.7,5.8819]
[1742801496228,4.80526,2081.1,2080.4,5.052]
[1742801496425,4.80558,2081.0,2080.3,5.63778]
[1742801496627,4.80597,2080.8,2080.3,0.8309]
[1742801496834,9.86107,2080.7,2079.9,6.59500467]
[1742801497125,4.80664,2080.5,2079.9,6.80399047]
[1742801497324,4.80653,2080.5,2079.9,1.99610047]
[1742801497529,4.80666,2080.5,2080.0,0.55]
[1742801497828,4.80701,2080.3,2079.9,0.8309]
[1742801498009,4.80696,2080.4,2079.9,0.8309]
[1742801498196,5.9026227,2080.4,2079.8,4.80802]
[1742801498405,1.0956627,2080.4,2080.1,4.80725]
[1742801498709,1.0956627,2080.4,2080.3,9.12809]
[1742801500040,1.0956627,2080.4,2080.3,0.55]
[1742801500333,1.0956627,2080.4,2079.9,10.62779]
[1742801500506,4.8071,2080.3,2079.9,5.8201]
[1742801500834,4.8071,2080.3,2079.9,0.55]
[1742801501141,4.8076,2080.1,2079.6,5.05]
[1742801501310,4.8076,2080.1,2079.6,9.8585]
[1742801501504,4.80758,2080.1,2079.6,3.0]
[1742801501703,4.80758,2080.1,2079.5,7.4259434]
[1742801501905,4.80792,2079.9,2079.5,1.8461234]
[1742801502104,4.80827,2079.8,2079.3,6.552054]
[1742801502422,4.80827,2079.8,2079.3,4.8092]
[1742801502729,9.61654,2079.8,2079.3,4.80929]
[1742801503510,4.80839,2079.7,2079.4,0.55]
[1742801503713,9.6166,2079.8,2079.3,5.35929]
[1742801503906,4.80827,2079.8,2079.3,5.35929]
[1742801504107,4.80826,2079.8,2079.3,6.753281]
[1742801504303,4.80853,2079.7,2079.3,1.393991]
[1742801504542,4.80884,2079.5,2079.0,9.85382]
[1742801504706,4.80795,2079.9,2079.1,0.55]
[1742801504907,1.0956627,2080.0,2079.7,4.80828]
[1742801505224,1.0956627,2080.0,2079.7,0.55]
[1742801505747,4.80811,2079.9,2079.5,0.55]
[1742801506038,1.0956627,2080.0,2079.6,4.80844]
[1742801506236,1.0956627,2080.0,2079.6,9.61688]
[1742801506534,1.0956627,2080.0,2079.6,4.80844]
[1742801506738,5.9033927,2080.0,2079.5,5.35884]
[1742801506934,1.0956627,2080.0,2079.5,1.085884]
[1742801507140,9.61616,2079.9,2079.5,1.085884]
[1742801507304,4.80807,2079.9,2079.5,1.085884]
[1742801507504,1.0956627,2080.0,2079.3,4.8093]
[1742801507705,1.0956627,2080.0,2079.1,5.06]
[1742801507706,4.80874,2079.6,2079.1,9.86971]
[1742801507907,4.80863,2079.6,2079.2,4.80953]
[1742801508140,4.80863,2079.6,2079.1,4.80971]
[1742801508343,5.7835059,2079.6,2079.3,0.55]
[1742801508512,0.9748759,2079.6,2079.3,0.55]
[1742801508724,0.9748759,2079.6,2079.5,4.80884]
[1742801508911,5.7834959,2079.6,2079.3,1.085934]
[1742801509111,5.7834959,2079.6,2079.1,4.80977]
[1742801509343,0.9748759,2079.6,2079.2,4.80942]
[1742801509755,0.9748759,2079.6,2079.2,0.55]
[1742801510257,4.80886,2079.5,2079.2,0.55]
[1742801510419,4.80909,2079.4,2079.1,0.55]
[1742801510760,4.80886,2079.5,2079.1,5.35976]
[1742801510954,4.80886,2079.5,2079.1,6.881418]
[1742801511259,4.80939,2079.3,2078.9,4.81018]
[1742801511443,4.80939,2079.3,2078.8,5.58133]
[1742801511444,4.80966,2079.2,2078.7,4.81066]
[1742801511754,4.80966,2079.2,2078.8,0.55]
[1742801511919,4.80991,2079.1,2078.7,4.81056]
[1742801512119,4.80966,2079.2,2078.7,5.77271]
[1742801512353,4.80966,2079.2,2078.5,4.81102]
[1742801512354,4.8101,2079.0,2078.5,4.81102]
[1742801512724,4.8101,2079.0,2078.5,4.81099]
[1742801512928,0.9748759,2079.2,2078.8,4.81043]
[1742801513113,0.9748759,2079.2,2078.9,4.81012]
[1742801513315,0.9748759,2079.0,2078.9,4.81012]
[1742801513519,0.9748759,2079.0,2078.9,5.772175]
[1742801513753,0.9748759,2079.0,2078.9,0.962055]
[1742801513928,0.9748759,2079.0,2078.8,0.55]
[1742801514329,0.9748759,2079.0,2078.5,4.81093]
[1742801514330,5.7849859,2079.0,2078.5,4.81093]
[1742801514841,0.9748759,2079.0,2078.6,4.81078]
[1742801515015,0.9748759,2079.0,2078.6,4.81077]
[1742801515629,0.9748759,2079.0,2078.3,3.55]
[1742801515830,0.9748759,2079.0,2078.6,4.81083]
[1742801516349,4.81026,2078.9,2078.5,5.36112]
[1742801516555,5.64166,2078.9,2078.5,5.36114]
[1742801516843,0.8314,2078.9,2078.5,5.36105]
[1742801517053,0.9748759,2079.0,2078.9,4.81023]
[1742801517258,0.9748759,2079.0,2078.9,6.803368]
[1742801517655,0.9748759,2079.0,2078.9,6.253368]
[1742801517959,0.9748759,2079.0,2078.9,6.803368]
[1742801520653,0.9748759,2079.0,2078.9,9.803368]
[1742801521131,0.9748759,2079.0,2078.9,10.635468]
[1742801523732,0.9748759,2079.0,2078.9,9.253368]
[1742801524135,0.9748759,2079.0,2078.9,4.81023]
[1742801524546,0.9748759,2079.0,2078.9,5.36023]
[1742801524961,0.9748759,2079.0,2078.9,10.40323]
[1742801525168,0.9748759,2079.0,2078.9,5.36023]
[1742801525883,0.9748759,2079.0,2078.9,4.81023]
[1742801526868,0.9748759,2079.0,2078.9,6.84757015]
[1742801527067,5.9e-06,2079.0,2078.9,9.84757015]
[1742801527272,5.9e-06,2079.0,2078.9,15.69987015]
[1742801528258,5.9e-06,2079.0,2078.9,16.84915208]
[1742801528847,5.9e-06,2079.0,2078.9,8.23915208]
[1742801529146,5.9e-06,2079.0,2078.9,8.95951193]
[1742801531943,1.855112,2079.5,2079.2,0.44203151]
[1742801532138,6.664012,2079.5,2079.2,0.44203151]
[1742801532554,1.855112,2079.5,2079.2,0.44203151]
[1742801532964,6.39613004,2079.4,2078.9,5.51747042]
[1742801533147,4.80931,2079.3,2078.9,5.51747042]
[1742801533477,4.80954,2079.2,2078.9,0.70725042]
[1742801533675,4.80931,2079.3,2078.9,0.70725042]
[1742801533974,4.80931,2079.3,2079.0,0.44538626]
[1742801534178,10.818258,2079.3,2079.0,0.44538626]
[1742801534355,4.80966,2079.2,2079.0,0.44538626]
[1742801534559,6.008798,2079.3,2079.0,0.44538626]
[1742801534767,4.80977,2079.1,2079.0,0.44538626]
[1742801535082,3.0,2078.9,2078.6,0.70725042]
[1742801535281,7.81027,2078.9,2078.6,0.70725042]
[1742801535847,5.62959,2078.7,2078.6,0.70725042]
[1742801536173,2.162918,2078.7,2078.4,0.70725042]
[1742801536376,0.8189,2078.7,2078.4,0.70725042]
[1742801536885,10.44048,2078.7,2078.4,0.70725042]
[1742801537097,10.44048,2078.7,2078.3,0.70725042]
[1742801537098,4.81102,2078.6,2078.3,0.70725042]
[1742801537266,10.44041,2078.7,2078.3,0.70725042]
[1742801537469,7.476941,2078.7,2078.3,5.51885042]
[1742801537796,7.476941,2078.7,2078.3,0.70725042]
[1742801538202,7.476941,2078.7,2078.3,4.81161]
[1742801538761,7.476941,2078.7,2078.3,4.81145]
[1742801539604,4.81106,2078.6,2078.1,4.81187]
[1742801539757,4.81106,2078.6,2078.2,4.81182]
[1742801540995,12.287811,2078.7,2078.3,4.81161]
[1742801541196,12.287811,2078.7,2078.3,4.81159]
[1742801541197,7.476941,2078.7,2078.3,4.81159]
[1742801541380,12.287821,2078.7,2078.3,4.81159]
[1742801541697,12.287821,2078.7,2078.4,4.81138]
[1742801541698,0.8189,2078.7,2078.4,4.81138]
[1742801542109,4.81118,2078.5,2078.3,0.44498793]
[1742801542272,7.81139,2078.4,2078.3,0.44498793]
[1742801542593,7.81139,2078.4,2077.5,0.94290627]
[1742801542594,3.0,2077.6,2077.0,5.76838947]
[1742801542761,0.7936,2077.5,2077.3,4.81392]
[1742801542956,3.0,2077.8,2076.5,5.17546645]
[1742801542957,0.7936,2077.8,2077.7,4.81301]
[1742801543162,0.7936,2077.8,2077.6,4.81317]
[1742801543362,0.7936,2077.8,2077.5,4.81343]
[1742801543670,0.7936,2077.8,2077.6,4.81323]
[1742801543871,0.7936,2077.8,2077.5,4.81343]
[1742801544053,9.77023162,2077.8,2077.4,4.8137]
[1742801544254,9.77012162,2077.8,2077.2,4.81407]
[1742801544586,9.77012162,2077.8,2077.3,9.62753]
[1742801544890,9.77012162,2077.8,2077.3,4.81374]
[1742801545558,9.77012162,2077.8,2077.3,9.62758]
[1742801545759,9.77012162,2077.8,2077.4,4.81368]
[1742801545959,0.7936,2077.8,2077.2,0.55]
[1742801546159,3.0,2077.9,2077.6,4.81323]
[1742801546482,3.0,2077.9,2077.7,4.81298]
[1742801546984,3.0,2077.9,2077.6,9.62634]
[1742801547191,3.0,2077.9,2077.6,4.81311]
[1742801548788,0.7936,2078.1,2077.6,0.481311]
[1742801548989,0.7936,2078.4,2078.0,4.81231]
[1742801549191,3.7936,2078.3,2077.8,4.8126]
[1742801549489,9.85496,2078.2,2077.7,4.81299]
[1742801549685,4.81218,2078.1,2077.7,4.81299]
[1742801549885,14.66699,2078.2,2077.7,4.81292]
[1742801550096,4.81216,2078.1,2077.6,4.81319]
[1742801550462,4.81232,2078.0,2077.6,4.81319]
[1742801550660,3.0,2078.1,2077.4,5.36369]
[1742801550856,4.81261,2077.9,2077.5,4.81335]
[1742801551280,10.40373,2077.8,2077.4,4.81368]
[1742801551480,4.81304,2077.7,2077.3,4.81389]
[1742801551985,11.21454962,2077.8,2077.3,4.81389]
[1742801551986,6.40161962,2077.8,2077.3,0.55]
[1742801552163,5.8218,2077.8,2077.6,4.81307]
[1742801552776,5.044,2077.8,2077.7,4.81301]
[1742801553375,3.7778,2078.1,2077.4,0.55]
[1742801553569,31.644,2078.2,2078.0,4.81231]
[1742801553760,5.038,2078.2,2077.9,4.81251]
[1742801553957,5.038,2078.2,2077.9,9.62493]
[1742801554167,5.038,2078.2,2078.1,4.81208]
[1742801554367,0.7778,2078.4,2078.1,4.81198]
[1742801554889,5.58919,2078.4,2078.1,4.81198]
[1742801555089,5.58919,2078.4,2077.9,4.81254]
[1742801555090,7.81173,2078.3,2077.9,4.81254]
[1742801555287,7.81173,2078.3,2077.9,9.62495]
[1742801555489,3.0,2078.3,2077.9,4.81241]
[1742801555795,7.81163,2078.3,2077.9,4.81241]
[1742801555969,8.69378462,2078.3,2077.9,4.81241]
[1742801556173,13.50560462,2078.3,2077.9,4.81142566]
[1742801556901,8.69378462,2078.3,2077.9,4.81142566]
[1742801557068,0.7778,2078.4,2078.1,4.81207]
[1742801557463,0.7778,2078.4,2078.1,4.81199]
[1742801558065,3.7555,2078.7,2077.7,5.36301]
[1742801558269,0.7555,2078.7,2078.6,4.81093]
[1742801558468,4.80905,2079.5,2078.1,0.55]
[1742801558469,0.7555,2078.9,2078.1,0.55]
[1742801558702,4.81047,2078.8,2078.4,4.8113]
[1742801559020,3.04837298,2078.8,2078.1,4.81206]
[1742801559327,5.56698,2078.4,2078.0,4.81209]
[1742801559609,0.556698,2078.3,2078.0,4.81209]
[1742801559815,5.368478,2078.3,2077.9,4.81255]
[1742801560416,0.556698,2078.3,2077.7,0.7872]
[1742801560567,5.7865,2078.4,2077.8,0.55]
[1742801560773,5.7865,2078.4,2078.1,4.81207]
[1742801561075,10.5979,2078.4,2078.1,4.81207]
[1742801561282,4.81162,2078.3,2078.0,4.8123]
[1742801561496,4.81162,2078.3,2077.8,4.81261]
[1742801561701,4.059812,2078.2,2077.9,4.81253]
[1742801562211,1.059812,2078.2,2077.9,4.81253]
[1742801562400,1.059812,2078.2,2078.0,4.81227]
[1742801562572,1.059812,2078.2,2077.9,4.81254]
[1742801562776,7.8117,2078.3,2077.7,4.81301]
[1742801562777,3.0,2078.3,2078.1,4.81198]
[1742801563302,5.7865,2078.4,2077.8,0.44461293]
[1742801563303,0.7555,2078.4,2078.3,4.81162]
[1742801564505,0.7555,2078.4,2078.2,4.81185]
[1742801564806,0.7555,2078.4,2078.2,4.81172]
[1742801566298,0.7555,2078.4,2078.1,4.81208]
[1742801566493,0.7555,2078.4,2078.2,4.81184]
[1742801568782,0.7555,2078.4,2078.2,4.81177]
[1742801568982,0.7555,2078.4,2078.2,4.8117]
[1742801569183,0.7555,2078.7,2078.2,2.34416967]
[1742801569410,0.7555,2078.7,2078.4,4.81125]
[1742801569597,0.7555,2078.7,2078.5,4.81106]
[1742801569911,0.7555,2078.7,2078.5,4.81096]
[1742801570111,0.7555,2078.7,2078.5,9.62199]
[1742801570418,0.7555,2078.7,2078.5,4.81096]
[1742801570715,6.922484,2078.7,2078.3,10.0688367]
[1742801571011,4.81094,2078.6,2078.3,0.4459067]
[1742801571184,4.85967298,2078.5,2078.3,0.4459067]
[1742801571385,4.81139,2078.4,2078.3,0.4459067]
[1742801571603,0.8063,2078.3,2078.0,4.81231]
[1742801571981,0.8063,2078.3,2078.0,9.62462]
[1742801572181,0.8063,2078.3,2077.9,0.4459067]
[1742801572182,4.81195,2078.2,2077.9,0.4459067]
[1742801572413,5.66632298,2078.3,2078.0,0.4459067]
[1742801572607,0.43949896,2078.2,2078.1,4.81208]
[1742801572806,5.8073,2078.5,2078.3,4.81149]
[1742801573192,5.8073,2078.5,2078.1,4.81208]
[1742801573386,5.8073,2078.5,2078.2,4.81185]
[1742801573712,5.8073,2078.5,2078.2,4.81175]
[1742801574011,5.8073,2078.5,2078.4,4.81139]
[1742801574214,5.8073,2078.5,2078.2,4.81185]
[1742801574415,5.8073,2078.5,2078.3,4.81158]
[1742801575388,3.0,2078.7,2078.4,4.8112]
[1742801575589,4.17953,2078.7,2078.4,4.8112]
[1742801576016,1.17953,2078.7,2078.4,4.8112]
[1742801577294,1.17953,2078.7,2078.3,4.81152]
[1742801577498,5.99025,2078.7,2078.3,4.81152]
[1742801577892,4.81102,2078.6,2078.2,4.81185]
[1742801578093,4.81116,2078.5,2078.1,4.81204]
[1742801578304,4.81116,2078.5,2078.1,5.25862541]
[1742801578618,4.81102,2078.6,2078.2,4.81163]
[1742801578807,4.81102,2078.6,2078.3,4.81162]
[1742801579009,4.8107,2078.7,2078.3,4.81162]
[1742801579216,3.0,2078.6,2078.3,9.62308]
[1742801579388,3.0,2078.6,2078.3,4.81146]
[1742801580394,7.81096,2078.6,2078.2,4.8118]
[1742801580722,7.81096,2078.6,2078.1,4.81189]
[1742801580723,7.81096,2078.6,2078.1,4.81204]
[1742801580917,4.81127,2078.5,2078.0,5.25866999]
[1742801581117,5.61775,2078.4,2078.0,9.62432]
[1742801581709,5.61775,2078.4,2078.0,4.81212]
[1742801581909,5.61775,2078.4,2077.9,4.81254]
[1742801582218,4.8118,2078.3,2077.9,4.81254]
[1742801582528,9.62361,2078.3,2077.9,4.81254]
[1742801582843,5.854851,2078.2,2077.8,4.81262]